fUSD/lending_fUSD_20260126
["ID","MTS","AMOUNT","RATE_DAILY","PERIOD"]
[403619978,1769422241304,-599.9649829,0.00016086,2]
[403619979,1769422241314,-322.6107,0.00016186,2]
[403619980,1769422241323,-151.0,0.00016186,2]
[403619981,1769422241332,-9000.0,0.00016186,2]
[403619982,1769422241343,-721.12765535,0.00016186,2]
[403619983,1769422241352,-160.0,0.00016186,2]
[403619984,1769422241361,-209.40437684,0.00016186,2]
[403619985,1769422241370,-9552.16786547,0.00016186,2]
[403619986,1769422241380,-151.0,0.00016186,2]
[403619987,1769422241390,-2349.0,0.00016186,2]
[403619988,1769422241399,-6476.69539013,0.00016186,2]
[403619989,1769422241408,-174.61919141,0.00016186,2]
[403619990,1769422241418,-209.40437684,0.00016186,2]
[403619991,1769422241428,-2500.0,0.00016186,2]
[403619992,1769422241437,-2500.0,0.00016186,2]
[403619993,1769422241447,-2500.0,0.00016186,2]
[403619994,1769422241457,-2500.0,0.00016186,2]
[403619995,1769422241467,-2500.0,0.00016186,2]
[403619996,1769422241476,-2500.0,0.00016186,2]
[403619997,1769422241485,-2500.0,0.00016186,2]
[403619998,1769422241495,-2500.0,0.00016186,2]
[403619999,1769422241504,-250.0,0.00016186,2]
[403620000,1769422241513,-2500.0,0.00016186,2]
[403620001,1769422241522,-250.0,0.00016186,2]
[403620002,1769422241532,-2500.0,0.00016186,2]
[403620003,1769422241541,-250.0,0.00016186,2]
[403620004,1769422241551,-209.40437684,0.00016186,2]
[403620005,1769422241560,-2500.0,0.00016186,2]
[403620006,1769422241570,-220.0,0.00016186,2]
[403620007,1769422241579,-250.0,0.00016186,2]
[403620008,1769422241589,-220.0,0.00016186,2]
[403620009,1769422241599,-1000.0,0.00016186,2]
[403620010,1769422241609,-250.0,0.00016186,2]
[403620011,1769422241619,-344.90178664,0.00016186,2]
[403620012,1769422241628,-1000.0,0.00016186,2]
[403620013,1769422241638,-250.0,0.00016186,2]
[403620014,1769422241648,-250.0,0.00016186,2]
[403620015,1769422241657,-250.0,0.00016186,2]
[403620016,1769422241667,-1000.0,0.00016186,2]
[403620017,1769422241676,-250.0,0.00016186,2]
[403620018,1769422241686,-250.0,0.00016186,2]
[403620019,1769422241695,-1000.0,0.00016186,2]
[403620020,1769422241705,-250.0,0.00016186,2]
[403620021,1769422241715,-151.0,0.00016186,2]
[403620022,1769422241724,-250.0,0.00016186,2]
[403620023,1769422241733,-250.0,0.00016186,2]
[403620024,1769422241742,-250.0,0.00016186,2]
[403620025,1769422241751,-1000.0,0.00016186,2]
[403620026,1769422241761,-250.0,0.00016186,2]
[403620027,1769422241770,-156.587,0.00016186,2]
[403620028,1769422241779,-250.0,0.00016186,2]
[403620029,1769422241789,-1000.0,0.00016186,2]
[403620030,1769422241798,-250.0,0.00016186,2]
[403620031,1769422241808,-250.0,0.00016186,2]
[403620032,1769422241818,-162.380719,0.00016186,2]
[403620033,1769422241828,-250.0,0.00016186,2]
[403620034,1769422241838,-1000.0,0.00016186,2]
[403620035,1769422241847,-250.0,0.00016186,2]
[403620036,1769422241857,-250.0,0.00016186,2]
[403620037,1769422241867,-156.88755266,0.00016186,2]
[403620038,1769422241877,-250.0,0.00016186,2]
[403620039,1769422241886,-1000.0,0.00016186,2]
[403620040,1769422241895,-250.0,0.00016186,2]
[403620041,1769422241905,-250.0,0.00016186,2]
[403620042,1769422241915,-1000.0,0.00016186,2]
[403620043,1769422241925,-250.0,0.00016186,2]
[403620044,1769422241934,-250.0,0.00016186,2]
[403620045,1769422241944,-1000.0,0.00016186,2]
[403620046,1769422241954,-250.0,0.00016186,2]
[403620047,1769422241963,-250.0,0.00016186,2]
[403620048,1769422241973,-250.0,0.00016186,2]
[403620049,1769422241982,-1000.0,0.00016186,2]
[403620050,1769422241992,-250.0,0.00016186,2]
[403620051,1769422242002,-250.0,0.00016186,2]
[403620052,1769422242011,-250.0,0.00016186,2]
[403620053,1769422242021,-250.0,0.00016186,2]
[403620054,1769422242032,-854.2589148,0.00016186,2]
[403620055,1769422242041,-250.0,0.00016186,2]
[403620056,1769422242051,-250.0,0.00016186,2]
[403620057,1769422242060,-3000.0,0.00016186,2]
[403620058,1769422242070,-250.0,0.00016186,2]
[403620059,1769422242079,-3000.0,0.00016186,2]
[403620060,1769422242089,-250.0,0.00016186,2]
[403620061,1769422242098,-250.0,0.00016186,2]
[403620062,1769422242107,-3000.0,0.00016186,2]
[403620063,1769422242117,-250.0,0.00016186,2]
[403620064,1769422242127,-250.0,0.00016186,2]
[403620065,1769422242136,-3000.0,0.00016186,2]
[403620066,1769422242146,-250.0,0.00016186,2]
[403620067,1769422242155,-250.0,0.00016186,2]
[403620068,1769422242165,-3000.0,0.00016186,2]
[403620069,1769422242174,-250.0,0.00016186,2]
[403620070,1769422242184,-250.0,0.00016186,2]
[403620071,1769422242193,-250.0,0.00016186,2]
[403620072,1769422242203,-3000.0,0.00016186,2]
[403620073,1769422242212,-359.04919981,0.00016186,2]
[403620074,1769422242221,-250.0,0.00016186,2]
[403620075,1769422242231,-3000.0,0.00016186,2]
[403620076,1769422242241,-500.0,0.00016186,2]
[403620077,1769422242250,-250.0,0.00016186,2]
[403620078,1769422242260,-3000.0,0.00016186,2]
[403620079,1769422242269,-500.0,0.00016186,2]
[403620080,1769422242279,-250.0,0.00016186,2]
[403620081,1769422242288,-3000.0,0.00016186,2]
[403620082,1769422242297,-500.0,0.00016186,2]
[403620083,1769422242310,-250.0,0.00016186,2]
[403620084,1769422242540,-250.0,0.00016186,2]
[403620085,1769422242591,-3000.0,0.00016186,2]
[403620086,1769422242601,-500.0,0.00016186,2]
[403620087,1769422242610,-250.0,0.00016186,2]
[403620088,1769422242620,-250.0,0.00016186,2]
[403620090,1769422242630,-3000.0,0.00016186,2]
[403620092,1769422242639,-500.0,0.00016186,2]
[403620093,1769422242649,-250.0,0.00016186,2]
[403620094,1769422242659,-250.0,0.00016186,2]
[403620095,1769422242668,-250.0,0.00016186,2]
[403620096,1769422242678,-500.0,0.00016186,2]
[403620097,1769422242687,-250.0,0.00016186,2]
[403620098,1769422242696,-250.0,0.00016186,2]
[403620100,1769422242705,-500.0,0.00016186,2]
[403620101,1769422242714,-250.0,0.00016186,2]
[403620104,1769422242723,-500.0,0.00016186,2]
[403620105,1769422242732,-250.0,0.00016186,2]
[403620106,1769422242741,-250.0,0.00016186,2]
[403620107,1769422242750,-250.0,0.00016186,2]
[403620109,1769422242760,-500.0,0.00016186,2]
[403620111,1769422242769,-250.0,0.00016186,2]
[403620113,1769422242778,-250.0,0.00016186,2]
[403620116,1769422242787,-500.0,0.00016186,2]
[403620119,1769422242796,-250.0,0.00016186,2]
[403620121,1769422242806,-250.0,0.00016186,2]
[403620125,1769422242816,-250.0,0.00016186,2]
[403620128,1769422242825,-500.0,0.00016186,2]
[403620130,1769422242834,-250.0,0.00016186,2]
[403620131,1769422242843,-250.0,0.00016186,2]
[403620132,1769422242853,-250.0,0.00016186,2]
[403620133,1769422242862,-250.0,0.00016186,2]
[403620134,1769422242871,-151.0,0.00016186,2]
[403620135,1769422242881,-250.0,0.00016186,2]
[403620136,1769422242891,-250.0,0.00016186,2]
[403620137,1769422242901,-250.0,0.00016186,2]
[403620138,1769422242911,-250.0,0.00016186,2]
[403620139,1769422242921,-250.0,0.00016186,2]
[403620140,1769422242930,-250.0,0.00016186,2]
[403620141,1769422242939,-250.0,0.00016186,2]
[403620142,1769422242950,-743.50770149,0.00016186,2]
[403620143,1769422242959,-250.0,0.00016186,2]
[403620144,1769422242969,-578.20924308,0.00016186,2]
[403620145,1769422242978,-250.0,0.00016186,2]
[403620146,1769422242988,-250.0,0.00016186,2]
[403620147,1769422242997,-250.0,0.00016186,2]
[403620148,1769422243006,-250.0,0.00016186,2]
[403620149,1769422243016,-250.0,0.00016186,2]
[403620150,1769422243026,-250.0,0.00016186,2]
[403620151,1769422243035,-1197.79,0.00016195,2]
[403620152,1769422243045,-9000.0,0.00016241,2]
[403620153,1769422243054,-9905.5980765,0.00016241,2]
[403620154,1769422243064,-500.0,0.00016271,2]
[403620155,1769422243074,-500.0,0.00016271,2]
[403620156,1769422243083,-500.0,0.00016271,2]
[403620157,1769422243093,-500.0,0.00016271,2]
[403620158,1769422243103,-500.0,0.00016271,2]
[403620159,1769422243112,-500.0,0.00016271,2]
[403620160,1769422243121,-500.0,0.00016271,2]
[403620161,1769422243131,-500.0,0.00016271,2]
[403620162,1769422243140,-500.0,0.00016271,2]
[403620163,1769422243150,-500.0,0.00016271,2]
[403620164,1769422243159,-500.0,0.00016271,2]
[403620165,1769422243169,-184.44067477,0.00016272,2]
[403620166,1769422243180,-3203.84743619,0.00016272,2]
[403620167,1769422243190,-3254.62917349,0.00016272,2]
[403620168,1769422243199,-378.38431742,0.00016272,2]
[403620170,1769422243209,-150.0,0.00016274,2]
[403620171,1769422243219,-500.0,0.00016274,2]
[403620172,1769422243228,-168.37867545,0.00016274,2]
[403620173,1769422243237,-500.0,0.00016274,2]
[403620174,1769422243247,-150.0,0.00016274,2]
[403620175,1769422243256,-150.0,0.00016274,2]
[403620176,1769422243265,-500.0,0.00016274,2]
[403620177,1769422243275,-150.0,0.00016274,2]
[403620178,1769422243284,-500.0,0.00016274,2]
[403620179,1769422243293,-150.0,0.00016274,2]
[403620180,1769422243307,-500.0,0.00016274,2]
[403620181,1769422243317,-150.0,0.00016274,2]
[403620182,1769422243326,-500.0,0.00016274,2]
[403620183,1769422243336,-265.96044146,0.00016274,2]
[403620184,1769422243346,-150.0,0.00016274,2]
[403620185,1769422243355,-500.0,0.00016274,2]
[403620186,1769422243364,-500.0,0.00016274,2]
[403620187,1769422243376,-150.0,0.00016274,2]
[403620188,1769422243386,-150.0,0.00016274,2]
[403620189,1769422243395,-500.0,0.00016274,2]
[403620190,1769422243405,-13036.22912528,0.00016284,2]
[403620192,1769422243414,-9000.0,0.00016296,2]
[403620194,1769422243424,-10272.10520533,0.00016296,2]
[403620196,1769422243434,-1000.0,0.00016324,2]
[403620198,1769422243444,-150.0,0.00016329,2]
[403620200,1769422243453,-500.0,0.00016329,2]
[403620202,1769422243463,-500.0,0.00016329,2]
[403620203,1769422243473,-150.0,0.00016329,2]
[403620204,1769422243482,-150.0,0.00016329,2]
[403620205,1769422243492,-500.0,0.00016329,2]
[403620206,1769422243501,-500.0,0.00016329,2]
[403620207,1769422243510,-500.0,0.00016329,2]
[403620208,1769422243520,-150.0,0.00016329,2]
[403620209,1769422243529,-500.0,0.00016329,2]
[403620210,1769422243538,-500.0,0.00016329,2]
[403620211,1769422243547,-500.0,0.00016329,2]
[403620212,1769422243556,-150.0,0.00016329,2]
[403620213,1769422243565,-500.0,0.00016329,2]
[403620214,1769422243575,-9000.0,0.00016351,2]
[403620215,1769422243584,-10652.17309792,0.00016351,2]
[403620216,1769422243593,-179.98,0.00016356,2]
[403620217,1769422243602,-300.0,0.00016356,2]
[403620218,1769422243611,-179.98,0.00016356,2]
[403620219,1769422243621,-2463.2,0.00016356,2]
[403620220,1769422243630,-558.94,0.00016356,2]
[403620221,1769422243640,-326.73,0.00016356,2]
[403620222,1769422243649,-150.0,0.00016356,2]
[403620223,1769422243659,-344.46,0.00016356,2]
[403620224,1769422243668,-300.0,0.00016356,2]
[403620225,1769422243678,-150.0,0.00016356,2]
[403620226,1769422243687,-1231.6,0.00016356,2]
[403620227,1769422243697,-344.46,0.00016356,2]
[403620228,1769422243706,-150.0,0.00016356,2]
[403620229,1769422243716,-150.0,0.00016356,2]
[403620230,1769422243725,-300.0,0.00016356,2]
[403620231,1769422243735,-172.23,0.00016356,2]
[403620232,1769422243744,-150.0,0.00016356,2]
[403620233,1769422243754,-344.46,0.00016356,2]
[403620234,1769422243763,-150.0,0.00016356,2]
[403620235,1769422243772,-172.23,0.00016356,2]
[403620236,1769422243781,-558.94,0.00016356,2]
[403620237,1769422243790,-150.0,0.00016356,2]
[403620238,1769422243799,-1117.88,0.00016356,2]
[403620239,1769422243808,-172.23,0.00016356,2]
[403620240,1769422243817,-150.0,0.00016356,2]
[403620241,1769422243826,-558.94,0.00016356,2]
[403620242,1769422243835,-150.0,0.00016356,2]
[403620243,1769422243844,-150.0,0.00016384,2]
[403620244,1769422243854,-500.0,0.00016384,2]
[403620245,1769422243863,-500.0,0.00016384,2]
[403620246,1769422243872,-200.0,0.00016384,2]
[403620247,1769422243881,-150.0,0.00016384,2]
[403620248,1769422243890,-200.0,0.00016384,2]
[403620249,1769422243899,-500.0,0.00016384,2]
[403620250,1769422243907,-500.0,0.00016384,2]
[403620251,1769422243917,-500.0,0.00016384,2]
[403620252,1769422243927,-500.0,0.00016384,2]
[403620253,1769422243936,-200.0,0.00016384,2]
[403620254,1769422243945,-624.52721142,0.00016384,2]
[403620255,1769422243955,-1086.0,0.000164,2]
[403620256,1769422243964,-837.0,0.000164,2]
[403620257,1769422243974,-825.0,0.000164,2]
[403620258,1769422243983,-1086.0,0.000164,2]
[403620259,1769422243992,-1086.0,0.000164,2]
[403620260,1769422244002,-11189.24660585,0.00016406,2]
[403620261,1769422244011,-628.83807306,0.00016437,2]
[403620262,1769422244021,-500.0,0.00016437,2]
[403620263,1769422244030,-500.0,0.00016437,2]
[403620264,1769422244040,-500.0,0.00016437,2]
[403620265,1769422244049,-500.0,0.00016437,2]
[403620266,1769422244059,-500.0,0.00016437,2]
[403620267,1769422244069,-500.0,0.00016437,2]
[403620268,1769422244080,-500.0,0.00016437,2]
[403620269,1769422244089,-150.0,0.00016437,2]
[403620270,1769422244099,-502.45286681,0.00016438,2]
[403620271,1769422244109,-632.75172605,0.00016438,2]
[403620272,1769422244119,-534.26205379,0.00016438,2]
[403620273,1769422244128,-500.0,0.00016438,2]
[403620274,1769422244138,-500.0,0.00016438,2]
[403620275,1769422244147,-500.0,0.00016438,2]
[403620276,1769422244157,-500.0,0.00016438,2]
[403620277,1769422244168,-500.0,0.00016438,2]
[403620278,1769422244178,-500.0,0.00016438,2]
[403620279,1769422244187,-500.0,0.00016438,2]
[403620280,1769422244196,-500.0,0.00016438,2]
[403620281,1769422244205,-500.0,0.00016438,2]
[403620282,1769422244215,-500.0,0.00016438,2]
[403620283,1769422244224,-500.0,0.00016438,2]
[403620284,1769422244233,-500.0,0.00016438,2]
[403620285,1769422244243,-500.0,0.00016438,2]
[403620286,1769422244253,-500.0,0.00016438,2]
[403620287,1769422244262,-500.0,0.00016438,2]
[403620288,1769422244272,-500.0,0.00016438,2]
[403620289,1769422244281,-500.0,0.00016438,2]
[403620290,1769422244291,-500.0,0.00016438,2]
[403620291,1769422244300,-500.0,0.00016438,2]
[403620292,1769422244314,-500.0,0.00016438,2]
[403620293,1769422244323,-500.0,0.00016438,2]
[403620294,1769422244332,-500.0,0.00016438,2]
[403620295,1769422244342,-500.0,0.00016438,2]
[403620296,1769422244351,-500.0,0.00016438,2]
[403620297,1769422244360,-500.0,0.00016438,2]
[403620298,1769422244370,-500.0,0.00016438,2]
[403620299,1769422244380,-500.0,0.00016438,2]
[403620300,1769422244390,-500.0,0.00016438,2]
[403620301,1769422244399,-500.0,0.00016438,2]
[403620302,1769422244408,-500.0,0.00016438,2]
[403620303,1769422244418,-500.0,0.00016438,2]
[403620304,1769422244427,-500.0,0.00016438,2]
[403620305,1769422244437,-500.0,0.00016438,2]
[403620306,1769422244447,-500.0,0.00016438,2]
[403620307,1769422244456,-500.0,0.00016438,2]
[403620308,1769422244466,-500.0,0.00016438,2]
[403620309,1769422244477,-500.0,0.00016438,2]
[403620310,1769422244487,-500.0,0.00016438,2]
[403620311,1769422244497,-500.0,0.00016438,2]
[403620312,1769422244507,-500.0,0.00016438,2]
[403620313,1769422244517,-500.0,0.00016438,2]
[403620314,1769422244526,-500.0,0.00016438,2]
[403620315,1769422244535,-175.04781543,0.00016438,2]
[403620316,1769422244546,-500.0,0.00016438,2]
[403620317,1769422244555,-500.0,0.00016438,2]
[403620318,1769422244565,-500.0,0.00016438,2]
[403620319,1769422244573,-804.28716857,0.00016438,2]
[403620320,1769422244583,-804.28716857,0.00016438,2]
[403620321,1769422244591,-804.28716857,0.00016438,2]
[403620322,1769422244600,-804.28716857,0.00016438,2]
[403620323,1769422244609,-804.28716857,0.00016438,2]
[403620324,1769422244618,-804.28716857,0.00016438,2]
[403620325,1769422244628,-804.28716857,0.00016438,2]
[403620326,1769422244638,-804.28716857,0.00016438,2]
[403620327,1769422244648,-804.28716857,0.00016438,2]
[403620328,1769422244660,-804.28716857,0.00016438,2]
[403620329,1769422244669,-804.28716857,0.00016438,2]
[403620330,1769422244678,-804.28716857,0.00016438,2]
[403620331,1769422244687,-804.28716857,0.00016438,2]
[403620332,1769422244696,-804.28716857,0.00016438,2]
[403620333,1769422244706,-804.28716857,0.00016438,2]
[403620334,1769422244715,-804.28716857,0.00016438,2]
[403620335,1769422244725,-804.28716857,0.00016438,2]
[403620336,1769422244734,-804.28716857,0.00016438,2]
[403620337,1769422244743,-804.28716857,0.00016438,2]
[403620338,1769422244754,-804.28716857,0.00016438,2]
[403620339,1769422244763,-804.28716857,0.00016438,2]
[403620340,1769422244772,-804.28716857,0.00016438,2]
[403620341,1769422244782,-804.28716857,0.00016438,2]
[403620342,1769422244791,-804.28716857,0.00016438,2]
[403620343,1769422244800,-804.28716857,0.00016438,2]
[403620344,1769422244809,-804.28716857,0.00016438,2]
[403620345,1769422244818,-804.28716857,0.00016438,2]
[403620346,1769422244828,-804.28716857,0.00016438,2]
[403620347,1769422244837,-804.28716857,0.00016438,2]
[403620348,1769422244846,-804.28716857,0.00016438,2]
[403620349,1769422244855,-804.28716857,0.00016438,2]
[403620350,1769422244865,-804.28716857,0.00016438,2]
[403620351,1769422244874,-804.28716857,0.00016438,2]
[403620352,1769422244883,-804.28716857,0.00016438,2]
[403620353,1769422244892,-804.28716857,0.00016438,2]
[403620354,1769422244901,-804.28716857,0.00016438,2]
[403620355,1769422244910,-804.28716857,0.00016438,2]
[403620356,1769422244919,-804.28716857,0.00016438,2]
[403620357,1769422244929,-804.28716857,0.00016438,2]
[403620358,1769422244938,-804.28716857,0.00016438,2]
[403620359,1769422244948,-804.28716857,0.00016438,2]
[403620360,1769422244958,-804.28716857,0.00016438,2]
[403620361,1769422244968,-804.28716857,0.00016438,2]
[403620362,1769422244977,-804.28716857,0.00016438,2]
[403620363,1769422244987,-798.0,0.00016438,2]
[403620364,1769422244996,-200.0,0.00016438,5]
[403620365,1769422245005,-200.0,0.00016438,5]
[403620366,1769422245014,-179.20591,0.00016438,5]
[403620367,1769422245024,-800.73589182,0.00016438,2]
[403620368,1769422245033,-176.6069258,0.00016438,2]
[403620369,1769422245042,-500.0,0.00016438,2]
[403620370,1769422245052,-150.0,0.00016438,2]
[403620371,1769422245061,-500.0,0.00016438,2]
[403620372,1769422245070,-500.0,0.00016438,2]
[403620373,1769422245079,-500.0,0.00016438,2]
[403620374,1769422245089,-500.0,0.00016438,2]
[403620375,1769422245098,-1031.28426178,0.00016462,2]
[403620376,1769422245107,-955.05499187,0.00016462,2]
[403620377,1769422245117,-1197.79,0.00016469,2]
[403620378,1769422245126,-500.0,0.00016493,2]
[403620379,1769422245136,-150.0,0.00016493,2]
[403620380,1769422245145,-500.0,0.00016493,2]
[403620381,1769422245155,-500.0,0.00016493,2]
[403620382,1769422245165,-500.0,0.00016493,2]
[403620383,1769422245175,-500.0,0.00016493,2]
[403620384,1769422245185,-500.0,0.00016548,2]
[403620385,1769422245194,-170.0,0.00016548,2]
[403620386,1769422245203,-500.0,0.00016548,2]
[403620387,1769422245212,-183.96759495,0.00016548,2]
[403620388,1769422245221,-500.0,0.00016548,2]
[403620389,1769422245231,-500.0,0.00016548,2]
[403620390,1769422245240,-500.0,0.00016603,2]
[403620391,1769422245249,-500.0,0.00016603,2]
[403620392,1769422245259,-500.0,0.00016603,2]
[403620393,1769422245268,-500.0,0.00016603,2]
[403620394,1769422245277,-13036.22912528,0.00016607,2]
[403620395,1769422245287,-291.91,0.0001665,2]
[403620396,1769422245296,-500.0,0.00016658,2]
[403620397,1769422245310,-500.0,0.00016658,2]
[403620398,1769422245325,-500.0,0.00016658,2]
[403620399,1769422245334,-500.0,0.00016658,2]
[403620400,1769422245349,-500.0,0.00016699,2]
[403620401,1769422245364,-500.0,0.00016699,2]
[403620402,1769422245374,-500.0,0.00016699,2]
[403620403,1769422245384,-165.2,0.00016712,2]
[403620404,1769422245394,-500.0,0.00016712,2]
[403620405,1769422245403,-500.0,0.00016712,2]
[403620406,1769422245412,-500.0,0.00016712,2]
[403620407,1769422245425,-240.0,0.00016712,2]
[403620408,1769422245434,-163.0,0.0001672,2]
[403620409,1769422245444,-163.0,0.0001672,2]
[403620410,1769422245453,-837.0,0.0001672,2]
[403620411,1769422245463,-1086.0,0.0001672,2]
[403620412,1769422245473,-163.0,0.0001672,2]
[403620413,1769422245483,-1086.0,0.0001672,2]
[403620414,1769422245492,-1086.0,0.0001672,2]
[403620415,1769422245503,-1086.0,0.0001672,2]
[403620416,1769422245513,-1086.0,0.0001672,2]
[403620417,1769422245523,-4299.6,0.00016722,2]
[403620418,1769422245532,-151.0,0.00016734,2]
[403620419,1769422245542,-151.0,0.00016734,2]
[403620420,1769422245552,-181.08010149,0.00016734,2]
[403620421,1769422245561,-209.40437684,0.00016734,2]
[403620422,1769422245571,-885.86649465,0.00016734,2]
[403620423,1769422245580,-743.50770149,0.00016734,2]
[403620424,1769422245590,-2565.43,0.00016738,2]
[403620425,1769422245600,-1197.79,0.00016743,2]
[403620426,1769422245610,-500.0,0.00016767,2]
[403620427,1769422245619,-500.0,0.00016767,2]
[403620428,1769422245629,-500.0,0.00016767,2]
[403620429,1769422245639,-208.55,0.00016771,2]
[403620430,1769422245649,-152.16,0.000168,2]
[403620431,1769422245658,-500.0,0.00016822,2]
[403620432,1769422245667,-173.82376987,0.00016822,2]
[403620433,1769422245677,-500.0,0.00016822,2]
[403620434,1769422245687,-433.0,0.00016824,2]
[403620435,1769422245698,-4299.6,0.00016838,2]
[403620436,1769422245707,-2351.0,0.0001686,2]
[403620437,1769422245717,-358.28231602,0.00016866,2]
[403620438,1769422245726,-560.38,0.00016873,2]
[403620439,1769422245736,-500.0,0.00016877,2]
[403620440,1769422245745,-500.0,0.00016877,2]
[403620441,1769422245755,-500.7746919,0.00016884,2]
[403620442,1769422245765,-500.0,0.00016884,2]
[403620443,1769422245775,-500.0,0.00016884,2]
[403620444,1769422245784,-500.0,0.00016884,2]
[403620445,1769422245794,-500.0,0.00016884,2]
[403620446,1769422245804,-500.0,0.00016884,2]
[403620447,1769422245814,-500.93909876,0.00016884,2]
[403620448,1769422245823,-500.0,0.00016884,2]
[403620449,1769422245833,-500.46570167,0.00016884,2]
[403620450,1769422245844,-500.0,0.00016884,2]
[403620451,1769422245853,-500.79595583,0.00016884,2]
[403620452,1769422245862,-500.0,0.00016884,2]
[403620453,1769422245871,-500.0,0.00016884,2]
[403620454,1769422245881,-500.0,0.00016884,2]
[403620455,1769422245890,-268.35638864,0.00016884,2]
[403620456,1769422245900,-500.0,0.00016884,2]
[403620457,1769422245909,-500.91595269,0.00016884,2]
[403620458,1769422245918,-500.0,0.00016884,2]
[403620459,1769422245928,-500.0,0.00016884,2]
[403620460,1769422245937,-500.0,0.00016884,2]
[403620461,1769422245947,-500.0,0.00016884,2]
[403620462,1769422245956,-500.0,0.00016884,2]
[403620463,1769422245966,-501.63107455,0.00016884,2]
[403620464,1769422245975,-500.0,0.00016884,2]
[403620465,1769422245985,-500.0,0.00016884,2]
[403620466,1769422245996,-500.0,0.00016884,2]
[403620467,1769422246007,-500.0,0.00016884,2]
[403620468,1769422246019,-500.0,0.00016884,2]
[403620469,1769422246030,-500.0,0.00016884,2]
[403620470,1769422246040,-500.0,0.00016884,2]
[403620471,1769422246050,-5000.0,0.000169,6]
[403620472,1769422246059,-13036.22912528,0.0001693,2]
[403620473,1769422246068,-500.0,0.00016932,2]
[403620474,1769422246079,-500.0,0.00016932,2]
[403620475,1769422246089,-1031.28426178,0.00016941,2]
[403620476,1769422246098,-4299.6,0.00016954,2]
[403620477,1769422246107,-200.0,0.00016983,2]
[403620478,1769422246117,-798.0,0.00016986,2]
[403620479,1769422246126,-500.0,0.00016986,2]
[403620480,1769422246136,-500.0,0.00016986,2]
[403620481,1769422246145,-607.0,0.00017,2]
[403620482,1769422246154,-1197.79,0.00017017,2]
[403620483,1769422246164,-158.54454128,0.00017032,2]
[403620484,1769422246173,-500.0,0.00017039,2]
[403620485,1769422246183,-500.0,0.00017039,2]
[403620486,1769422246193,-837.0,0.0001704,2]
[403620487,1769422246202,-200.0,0.0001704,2]
[403620488,1769422246212,-1086.0,0.0001704,2]
[403620489,1769422246221,-1086.0,0.0001704,2]
[403620490,1769422246231,-1086.0,0.0001704,2]
[403620491,1769422246241,-1086.0,0.0001704,2]
[403620492,1769422246251,-484.73,0.00017041,2]
[403620493,1769422246260,-357.55114835,0.00017041,2]
[403620494,1769422246270,-500.0,0.00017041,2]
[403620495,1769422246279,-4299.6,0.00017071,2]
[403620496,1769422246291,-190.0,0.00017096,2]
[403620497,1769422246303,-1204.0,0.00017137,2]
[403620498,1769422246314,-916.0,0.00017137,2]
[403620499,1769422246323,-4831.0,0.00017137,2]
[403620500,1769422246333,-2455.897,0.00017137,2]
[403620501,1769422246342,-567.0,0.00017137,2]
[403620502,1769422246354,-656.34,0.00017139,2]
[403620503,1769422246364,-560.38,0.00017147,2]